bitfinex/quotes_BTCUSD_20251117
["timestamp","ask_amount","ask_price","bid_price","bid_amount"]
[1763338042664,0.48918579,94674.0,94673.0,0.0004452]
[1763338043074,0.39931579,94674.0,94673.0,0.0004452]
[1763338043488,0.35260579,94674.0,94673.0,0.0004452]
[1763338043700,0.34273287,94674.0,94673.0,0.0004452]
[1763338044676,0.34273287,94674.0,94673.0,0.0669152]
[1763338044864,0.323,94674.0,94673.0,0.1610752]
[1763338045485,0.57752,94674.0,94673.0,0.1610752]
[1763338045707,0.40784,94674.0,94673.0,0.1610752]
[1763338046066,0.323,94674.0,94673.0,0.1610752]
[1763338046702,0.323,94674.0,94673.0,0.1620752]
[1763338048092,0.323,94674.0,94673.0,0.0014452]
[1763338048323,0.323,94674.0,94673.0,0.1620752]
[1763338048721,0.323,94674.0,94673.0,0.0014452]
[1763338049026,0.38929,94674.0,94673.0,0.0004452]
[1763338049263,0.43356483,94674.0,94673.0,0.0004452]
[1763338049474,0.43356483,94674.0,94673.0,0.0014452]
[1763338049672,2.44344371,94674.0,94673.0,0.0004452]
[1763338049882,2.48686245,94674.0,94673.0,0.0004452]
[1763338051271,2.48686245,94674.0,94623.0,0.15264585]
[1763338051272,0.00999999,94660.0,94622.0,0.05668679]
[1763338051477,0.00025,94650.0,94634.0,0.09595906]
[1763338051686,0.01974539,94649.0,94634.0,0.09595906]
[1763338051838,0.01974591,94648.0,94634.0,0.09595906]
[1763338052106,0.01974591,94647.0,94634.0,0.09595906]
[1763338052333,0.01974591,94646.0,94634.0,0.09595906]
[1763338052512,0.01974591,94645.0,94634.0,0.09595906]
[1763338052702,0.01974591,94644.0,94634.0,0.09595906]
[1763338053026,0.01565496,94648.0,94634.0,0.09595906]
[1763338053328,0.04543,94635.0,94631.0,0.0003921]
[1763338053536,5e-05,94632.0,94631.0,0.0003921]
[1763338053830,0.01977607,94632.0,94631.0,0.0003921]
[1763338054026,0.43354607,94632.0,94631.0,0.0003921]
[1763338055232,0.43354607,94632.0,94631.0,0.00029464]
[1763338055432,0.68818607,94632.0,94631.0,0.00029464]
[1763338056034,0.59741607,94632.0,94631.0,0.00029464]
[1763338056437,0.68818607,94632.0,94631.0,0.00029464]
[1763338056798,0.34277607,94632.0,94631.0,0.00029464]
[1763338057003,0.51842607,94632.0,94631.0,0.00029464]
[1763338058409,0.5183658,94632.0,94631.0,0.00029464]
[1763338058908,0.3427158,94632.0,94631.0,0.00029464]
[1763338059117,0.32305,94632.0,94631.0,0.00029464]
[1763338059314,0.323,94632.0,94631.0,0.00029464]
[1763338060814,0.323,94632.0,94631.0,0.16092464]
[1763338061173,0.323,94632.0,94631.0,0.06676464]
[1763338062484,0.09077,94653.0,94631.0,0.16092464]
[1763338062712,0.00999999,94650.0,94644.0,0.09595906]
[1763338063113,0.323,94648.0,94631.0,0.00029464]
[1763338063351,0.323,94648.0,94641.0,0.09595906]
[1763338063508,0.323,94648.0,94631.0,0.00029464]
[1763338063708,0.09031,94647.0,94632.0,0.09595906]
[1763338064132,0.01690883,94649.0,94646.0,0.04607]
[1763338064305,0.01690883,94649.0,94648.0,0.09595906]
[1763338064306,0.01590883,94649.0,94648.0,0.09595906]
[1763338064534,0.323,94655.0,94648.0,0.09595906]
[1763338065092,0.01585011,94655.0,94648.0,0.09595906]
[1763338065295,0.323,94665.0,94648.0,0.09595906]
[1763338065518,0.49276,94649.0,94648.0,0.09595906]
[1763338065923,0.49276,94649.0,94648.0,0.09495906]
[1763338066534,0.323,94648.0,94640.0,0.04597]
[1763338066733,0.323,94648.0,94647.0,0.09595906]
[1763338066946,0.323,94648.0,94632.0,0.09595906]
[1763338067098,0.06142,94641.0,94632.0,0.09595906]
[1763338067547,0.323,94638.0,94632.0,0.09595906]
[1763338067724,0.00999999,94640.0,94632.0,0.09595906]
[1763338067921,0.00726,94651.0,94632.0,0.09595906]
[1763338068124,0.02951503,94650.0,94632.0,0.09595906]
[1763338068321,0.02952885,94649.0,94632.0,0.09595906]
[1763338068563,0.02952885,94648.0,94632.0,0.09595906]
[1763338068769,0.02952885,94647.0,94632.0,0.09595906]
[1763338068968,0.02952885,94646.0,94632.0,0.09595906]
[1763338069172,0.01967669,94645.0,94632.0,0.09595906]
[1763338069323,0.0295442,94644.0,94632.0,0.09595906]
[1763338069522,0.01967669,94643.0,94632.0,0.09595906]
[1763338069722,0.04633,94656.0,94642.0,0.07423]
[1763338069938,0.01594909,94665.0,94655.0,0.06567038]
[1763338070167,0.0295981,94664.0,94655.0,0.06567038]
[1763338070347,0.0295981,94663.0,94655.0,0.06567038]
[1763338070566,0.0295981,94662.0,94655.0,0.06567038]
[1763338070773,0.0295981,94661.0,94656.0,0.04597]
[1763338070972,0.0295981,94660.0,94656.0,0.04597]
[1763338071256,0.0295981,94659.0,94656.0,0.04597]
[1763338071430,0.04629,94673.0,94656.0,0.04597]
[1763338071431,0.0295981,94658.0,94656.0,0.04597]
[1763338071596,0.0295981,94657.0,94656.0,0.04597]
[1763338072023,0.0295981,94657.0,94656.0,0.21791904]
[1763338072195,0.01973207,94657.0,94656.0,0.19765]
[1763338072376,0.01669101,94665.0,94656.0,0.19765]
[1763338072579,0.0493,94686.0,94656.0,0.19765]
[1763338072580,0.01977126,94664.0,94657.0,0.09105]
[1763338072780,0.01977126,94663.0,94657.0,0.09105]
[1763338072975,0.01977126,94662.0,94657.0,0.09105]
[1763338073219,0.0165102,94665.0,94657.0,0.09105]
[1763338073425,0.0493,94686.0,94664.0,0.06063]
[1763338073596,0.02965587,94685.0,94677.0,0.09595906]
[1763338073793,0.0493,94686.0,94677.0,0.09595906]
[1763338073794,0.02965587,94684.0,94677.0,0.09595906]
[1763338074018,0.02965587,94683.0,94677.0,0.09595906]
[1763338074202,0.02965587,94682.0,94677.0,0.09595906]
[1763338074491,0.02965587,94681.0,94677.0,0.09609267]
[1763338074699,0.00061,94678.0,94677.0,0.00013361]
[1763338074905,2.34338058,94678.0,94677.0,0.00013361]
[1763338075100,2.41318587,94678.0,94677.0,0.00013361]
[1763338075550,2.66782587,94678.0,94677.0,0.00013361]
[1763338077474,0.35265587,94678.0,94677.0,0.00013361]
[1763338079760,0.39940587,94678.0,94677.0,0.00013361]
[1763338080097,0.41084587,94678.0,94677.0,0.00013361]
[1763338080344,0.35265587,94678.0,94677.0,0.00013361]
[1763338080493,0.01977058,94678.0,94677.0,0.15181361]
[1763338080699,0.01685256,94682.0,94681.0,0.09595906]
[1763338080902,0.0493,94725.0,94681.0,0.20255906]
[1763338081129,0.0493,94725.0,94708.0,0.09628]
[1763338081309,0.0172218,94709.0,94708.0,0.18733]
[1763338081527,0.00024933,94709.0,94708.0,0.18733]
[1763338082334,0.01707986,94709.0,94708.0,0.206063]
[1763338082563,0.01707986,94709.0,94708.0,0.03665]
[1763338082795,0.01707986,94709.0,94708.0,0.18833]
[1763338083368,0.01707986,94709.0,94708.0,0.18733]
[1763338083754,0.01707986,94709.0,94708.0,0.18833]
[1763338085012,0.01707986,94709.0,94708.0,0.18733]
[1763338085210,0.323,94738.0,94708.0,0.18833]
[1763338085454,0.49276,94709.0,94708.0,0.09728]
[1763338086061,0.49276,94709.0,94708.0,0.18733]
[1763338086812,0.02139,94747.0,94736.0,0.09595906]
[1763338087020,0.00013341,94753.0,94752.0,0.04597]
[1763338087450,0.0166488,94753.0,94752.0,0.19765]
[1763338087677,0.00013341,94753.0,94752.0,0.19765]
[1763338087862,0.00013341,94753.0,94752.0,0.217415]
[1763338088268,0.00013341,94753.0,94736.0,0.0136]
[1763338088269,0.10858695,94753.0,94736.0,0.0136]
[1763338088467,0.09250544,94753.0,94737.0,0.09595906]
[1763338088627,2.00048203,94752.0,94737.0,0.09595906]
[1763338088794,0.323,94751.0,94737.0,0.09595906]
[1763338088994,0.323,94749.0,94737.0,0.09595906]
[1763338089399,0.323,94749.0,94738.0,0.09105]
[1763338089802,0.323,94749.0,94737.0,0.09595906]
[1763338090115,0.00013341,94753.0,94737.0,0.09595906]
[1763338090524,0.00013341,94753.0,94752.0,0.09595906]
[1763338090725,0.00013341,94753.0,94752.0,0.15658906]
[1763338090952,0.00013341,94753.0,94752.0,0.26329797]
[1763338091425,0.00013341,94753.0,94752.0,0.24763906]
[1763338092196,0.00013341,94753.0,94752.0,0.24863906]
[1763338092398,0.00145027,94753.0,94752.0,0.24863906]
[1763338092603,0.00013341,94753.0,94752.0,0.24763906]
[1763338092811,0.00013341,94753.0,94752.0,0.24863906]
[1763338094617,9e-05,94800.0,94793.0,0.09595906]
[1763338094784,0.01022347,94800.0,94790.0,0.0136]
[1763338094989,0.01022347,94800.0,94793.0,0.09595906]
[1763338095300,0.01678655,94800.0,94793.0,0.09595906]
[1763338095499,0.4926,94794.0,94793.0,0.09595906]
[1763338095904,0.323,94793.0,94778.0,0.09595906]
[1763338096120,0.04925,94779.0,94760.0,0.04597]
[1763338096319,0.323,94789.0,94779.0,0.09595906]
[1763338096524,0.02678654,94800.0,94779.0,0.09595906]
[1763338096525,0.02778654,94800.0,94779.0,0.09595906]
[1763338096706,0.02778654,94800.0,94779.0,0.19136906]
[1763338096707,0.01778655,94800.0,94779.0,0.19136906]
[1763338097113,0.02778654,94800.0,94779.0,0.19136906]
[1763338097335,0.02778654,94800.0,94779.0,0.09595906]
[1763338097748,0.02678654,94800.0,94779.0,0.09595906]
[1763338098155,0.41393,94799.0,94779.0,0.09595906]
[1763338098967,0.41393,94798.0,94779.0,0.09595906]
[1763338099203,0.36641874,94794.0,94760.0,0.04597]
[1763338099369,0.00999999,94790.0,94772.0,0.09595906]
[1763338100684,0.323,94796.0,94773.0,0.09541]
[1763338100886,0.36641874,94796.0,94773.0,0.09541]
[1763338101102,0.323,94792.0,94773.0,0.09541]
[1763338101303,0.01678655,94800.0,94787.0,0.09595906]
[1763338101441,0.01678655,94800.0,94799.0,0.06522]
[1763338101648,0.01678655,94800.0,94799.0,0.16063]
[1763338101944,0.01678655,94800.0,94799.0,0.15963]
[1763338102151,0.00022348,94800.0,94799.0,0.15963]
[1763338102963,0.00022348,94800.0,94799.0,0.16063]
[1763338104351,0.0002,94820.0,94799.0,0.16063]
[1763338104629,0.00345035,94814.0,94813.0,0.06522]
[1763338104985,0.00345035,94814.0,94813.0,0.16063]
[1763338105383,0.00345035,94814.0,94795.0,0.14141]
[1763338105599,0.00345035,94814.0,94805.0,0.046]
[1763338105803,0.00345035,94814.0,94813.0,0.001]
[1763338105999,0.00345035,94814.0,94805.0,0.046]
[1763338106439,0.00345035,94814.0,94813.0,0.001]
[1763338107249,0.02025788,94814.0,94813.0,0.001]
[1763338107450,0.04996035,94814.0,94805.0,0.046]
[1763338107649,0.04996035,94814.0,94802.0,0.09595906]
[1763338108379,0.06634222,94814.0,94802.0,0.09595906]
[1763338108816,0.06634222,94814.0,94795.0,0.046]
[1763338108980,0.323,94810.0,94779.0,0.09541]
[1763338109307,0.04341874,94791.0,94760.0,0.04597]
[1763338109509,0.323,94787.0,94770.0,0.09595906]
[1763338109708,0.02947384,94790.0,94767.0,0.09595906]
[1763338109709,0.323,94783.0,94767.0,0.09595906]
[1763338109912,0.323,94781.0,94748.0,0.09541]
[1763338110118,0.323,94776.0,94737.0,0.09595906]
[1763338110321,2.04341874,94769.0,94741.0,0.046]
[1763338110522,0.04253,94753.0,94737.0,0.09595906]
[1763338111048,0.04253,94753.0,94737.0,0.09609254]
[1763338111378,0.01969501,94752.0,94737.0,0.09609254]
[1763338111579,0.04253,94753.0,94737.0,0.09609254]
[1763338111798,0.01969533,94752.0,94737.0,0.09609254]
[1763338111979,0.01969533,94751.0,94737.0,0.09609254]
[1763338112203,0.01969533,94750.0,94737.0,0.09609254]
[1763338112433,0.01969533,94749.0,94737.0,0.09609254]
[1763338112593,0.01969533,94748.0,94737.0,0.09609254]
[1763338112805,0.323,94754.0,94737.0,0.09609254]
[1763338113021,0.01970495,94753.0,94737.0,0.09609254]
[1763338113224,0.01970495,94752.0,94737.0,0.09609254]
[1763338113420,0.01970495,94751.0,94737.0,0.09609254]
[1763338113640,0.01970495,94750.0,94738.0,0.09541]
[1763338113846,0.04253,94780.0,94753.0,0.06522]
[1763338114080,0.02956158,94779.0,94770.0,0.09595906]
[1763338114259,0.02956504,94778.0,94755.0,0.09595906]
[1763338114474,0.01970772,94777.0,94770.0,0.09595906]
[1763338114672,0.01970772,94776.0,94756.0,0.14141]
[1763338114891,0.01970772,94775.0,94770.0,0.09595906]
[1763338115241,0.323,94772.0,94770.0,0.00013348]
[1763338115452,0.51222772,94771.0,94770.0,0.00013348]
[1763338115665,0.59698772,94771.0,94770.0,0.00013348]
[1763338115875,0.34270772,94771.0,94770.0,0.00013348]
[1763338116082,0.34270772,94771.0,94770.0,0.16076348]
[1763338116290,0.34270772,94771.0,94770.0,0.00013348]
[1763338116641,0.34237878,94771.0,94770.0,0.00013348]
[1763338116959,0.34103882,94771.0,94759.0,0.09272377]
[1763338117174,0.3213311,94771.0,94770.0,0.09595906]
[1763338117321,0.341067,94771.0,94770.0,0.09595906]
[1763338117527,2.0,94770.0,94741.0,0.03780831]
[1763338117748,0.02960457,94769.0,94758.0,0.09595906]
[1763338117922,0.0197359,94768.0,94758.0,0.09595906]
[1763338118126,0.0197359,94767.0,94758.0,0.09595906]
[1763338118322,0.0197359,94766.0,94758.0,0.09595906]
[1763338118526,0.0197359,94765.0,94753.0,0.04547]
[1763338118729,0.0197359,94764.0,94755.0,0.09595906]
[1763338118926,0.0197359,94763.0,94755.0,0.09595906]
[1763338119149,0.0197359,94762.0,94755.0,0.09595906]
[1763338119353,0.0197359,94761.0,94755.0,0.09595906]
[1763338119519,0.0197359,94760.0,94755.0,0.09595906]
[1763338119715,0.0197359,94759.0,94756.0,0.09541]
[1763338120016,0.0197359,94758.0,94756.0,0.09541]
[1763338120211,0.0197359,94757.0,94756.0,0.09541]
[1763338120516,0.05280754,94795.0,94780.0,0.046]
[1763338120737,0.323,94793.0,94782.0,0.08116267]
[1763338120938,0.02962089,94792.0,94782.0,0.08116267]
[1763338121257,0.02962089,94791.0,94782.0,0.08116267]
[1763338121407,0.02962089,94790.0,94782.0,0.08116267]
[1763338121576,0.02962089,94789.0,94783.0,0.09595906]
[1763338121777,0.02962089,94788.0,94783.0,0.09595906]
[1763338122131,0.02962089,94787.0,94783.0,0.09595906]
[1763338122276,0.02962089,94786.0,94783.0,0.09595906]
[1763338122477,0.02962089,94785.0,94783.0,0.09595906]
[1763338122678,0.01974726,94784.0,94783.0,0.09595906]
[1763338122873,0.01974726,94784.0,94755.0,0.22917737]
[1763338122874,0.03052044,94784.0,94755.0,0.22917737]
[1763338123110,0.35262044,94783.0,94770.0,0.09595906]
[1763338123313,0.02962044,94782.0,94770.0,0.09595906]
[1763338123508,0.02962044,94781.0,94755.0,0.19136906]
[1763338123777,0.02962044,94780.0,94771.0,0.09595906]
[1763338123952,0.02962125,94779.0,94771.0,0.09595906]
[1763338124151,0.02962125,94778.0,94771.0,0.09595906]
[1763338124495,0.01974726,94777.0,94772.0,0.09595906]
[1763338124629,0.01974726,94776.0,94772.0,0.09595906]
[1763338124814,0.01974726,94775.0,94772.0,0.09595906]
[1763338125011,0.01974726,94774.0,94758.0,0.09541]
[1763338125237,0.323,94789.0,94758.0,0.09541]
[1763338125238,0.01974726,94773.0,94772.0,0.09595906]
[1763338125462,0.59702726,94773.0,94772.0,0.09595906]
[1763338125641,0.34274726,94773.0,94772.0,0.09595906]
[1763338126469,0.323,94772.0,94755.0,0.09595906]
[1763338126765,0.01974726,94771.0,94755.0,0.09595906]
[1763338126967,0.01974726,94771.0,94770.0,0.09595906]
[1763338128303,0.01974726,94771.0,94755.0,0.09595906]
[1763338128515,0.01974726,94771.0,94620.0,0.45440684]
[1763338128516,0.323,94768.0,94739.0,0.03780831]
[1763338128894,0.323,94768.0,94755.0,0.09595906]
[1763338128895,0.02962172,94767.0,94755.0,0.09595906]
[1763338129111,0.02962451,94766.0,94755.0,0.09595906]
[1763338129334,0.02962451,94765.0,94756.0,0.09213]
[1763338129546,0.02962451,94764.0,94757.0,0.09595906]
[1763338129762,0.02962451,94763.0,94757.0,0.09595906]
[1763338129980,0.02962451,94762.0,94757.0,0.09595906]
[1763338130199,0.02962451,94761.0,94757.0,0.09595906]
[1763338130418,0.02962451,94760.0,94757.0,0.09595906]
[1763338130678,0.01975005,94759.0,94757.0,0.09595906]
[1763338130898,0.01975005,94758.0,94757.0,0.09595906]
[1763338131686,0.01975005,94758.0,94757.0,0.15748906]
[1763338131894,0.01975005,94758.0,94757.0,0.24961906]
[1763338132675,0.01975005,94758.0,94755.0,0.04547]
[1763338132877,0.01975005,94757.0,94735.0,0.09213]
[1763338133080,0.08440005,94756.0,94737.0,0.09609247]
[1763338133284,0.01975005,94755.0,94737.0,0.09609247]
[1763338133454,0.01975005,94754.0,94737.0,0.09609247]
[1763338133653,0.01975005,94753.0,94737.0,0.09609247]
[1763338133869,0.01975005,94752.0,94738.0,0.09213]
[1763338134089,0.01975005,94751.0,94738.0,0.09213]
[1763338134294,0.323,94761.0,94738.0,0.09213]
[1763338134489,0.04341874,94763.0,94738.0,0.09213]
[1763338134490,0.323,94758.0,94738.0,0.09213]
[1763338134691,0.01975671,94757.0,94738.0,0.09213]
[1763338134930,0.01975671,94756.0,94738.0,0.09213]
[1763338135147,0.01975671,94755.0,94738.0,0.09213]
[1763338135355,0.01977416,94754.0,94738.0,0.09213]
[1763338135588,0.1696,94739.0,94738.0,0.09213]
[1763338135750,0.4926,94739.0,94738.0,0.09213]
[1763338135953,0.4926,94739.0,94738.0,0.06153]
[1763338136125,0.323,94738.0,94737.0,0.09609247]
[1763338136575,0.38765,94738.0,94737.0,0.09609247]
[1763338136736,0.323,94738.0,94737.0,0.09609247]
[1763338137136,0.02788,94745.0,94737.0,0.09609247]
[1763338137359,0.02788,94745.0,94738.0,0.03780831]
[1763338137557,0.04201,94750.0,94738.0,0.03780831]
[1763338137940,0.04201,94750.0,94739.0,0.03780831]
[1763338138410,0.04201,94750.0,94737.0,0.09609247]
[1763338138411,0.04201,94750.0,94742.0,0.03780831]
[1763338138528,0.41489,94749.0,94742.0,0.03780831]
[1763338138736,0.41489,94749.0,94743.0,0.03780831]
[1763338139244,0.41489,94749.0,94744.0,0.03780831]
[1763338139375,0.41489,94749.0,94746.0,0.03780831]
[1763338139783,0.00092,94747.0,94746.0,0.03780831]
[1763338140195,0.4149,94747.0,94746.0,0.03780831]
[1763338140399,0.04715,94765.0,94746.0,0.15366]
[1763338140586,0.05257523,94784.0,94759.0,0.09595906]
[1763338140784,0.03820097,94813.0,94776.0,0.09532754]
[1763338140785,0.05264653,94790.0,94776.0,0.09532754]
[1763338140989,0.02972296,94789.0,94776.0,0.09532754]
[1763338141202,0.00091,94777.0,94776.0,0.09532754]
[1763338141604,0.09057,94789.0,94776.0,0.11053282]
[1763338141850,0.04201,94791.0,94779.0,0.03785234]
[1763338142097,0.00013336,94789.0,94784.0,0.03785234]
[1763338142245,0.00013336,94789.0,94783.0,0.03785234]
[1763338142444,0.00013336,94789.0,94784.0,0.03785234]
[1763338142690,0.00013336,94789.0,94785.0,0.03785234]
[1763338143065,0.00013336,94789.0,94787.0,0.03785234]
[1763338143280,0.00013336,94789.0,94782.0,0.07568482]
[1763338143586,0.00013336,94789.0,94781.0,0.04341874]
[1763338143791,0.00013336,94789.0,94788.0,0.06153]
[1763338144211,0.00013336,94789.0,94782.0,0.07568482]
[1763338144416,0.00013336,94789.0,94780.0,0.00999999]
[1763338144417,0.00013336,94789.0,94780.0,0.08568481]
[1763338144619,0.00013336,94789.0,94782.0,0.001]
[1763338145160,0.00013336,94789.0,94783.0,0.07568482]
[1763338145363,0.08476,94784.0,94783.0,0.07568482]
[1763338145616,0.00013336,94789.0,94779.0,0.04591]
[1763338145842,0.00013336,94789.0,94788.0,0.06153]
[1763338146022,0.00013336,94789.0,94788.0,0.06253]
[1763338146231,0.00013336,94789.0,94788.0,0.06153]
[1763338146505,0.08718336,94789.0,94787.0,0.05655441]
[1763338146701,0.08718336,94789.0,94787.0,0.03771539]
[1763338146702,0.00022,94788.0,94787.0,0.03771539]
[1763338146874,0.08641,94788.0,94786.0,0.03771539]
[1763338147084,0.08619,94788.0,94784.0,0.03771539]
[1763338147284,0.08619,94788.0,94781.0,0.03771539]
[1763338147726,0.00013336,94789.0,94781.0,0.03771539]
[1763338147915,0.00013336,94789.0,94776.0,0.09532754]
[1763338148729,0.09158336,94789.0,94787.0,0.001]
[1763338149073,0.09158336,94789.0,94776.0,0.09532754]
[1763338149074,0.00091,94788.0,94776.0,0.09532754]
[1763338149276,0.03926,94777.0,94776.0,0.09632754]
[1763338149483,0.323,94786.0,94776.0,0.09632754]
[1763338149689,0.323,94786.0,94776.0,0.09532754]
[1763338150525,0.00013336,94789.0,94776.0,0.09632754]
[1763338150766,0.323,94787.0,94776.0,0.09632754]
[1763338150967,0.323,94785.0,94776.0,0.09632754]
[1763338151170,0.323,94781.0,94776.0,0.09632754]
[1763338151368,2.32391,94777.0,94776.0,0.09632754]
[1763338151703,2.32391,94777.0,94776.0,0.09532754]
[1763338151828,2.41433,94777.0,94776.0,0.09532754]
[1763338152027,2.41433,94777.0,94776.0,0.09632754]
[1763338152223,2.41433,94777.0,94776.0,0.09532754]
[1763338152689,2.41433,94777.0,94776.0,0.001]
[1763338152895,2.41480351,94777.0,94776.0,2e-08]
[1763338153096,2.46731005,94777.0,94776.0,2e-08]
[1763338153272,2.46778956,94777.0,94776.0,2e-08]
[1763338153487,2.46731005,94777.0,94776.0,2e-08]
[1763338154071,2.46778956,94777.0,94776.0,2e-08]
[1763338154272,2.46731005,94777.0,94776.0,2e-08]
[1763338154859,0.323,94776.0,94752.0,0.09595906]
[1763338155138,0.323,94770.0,94752.0,0.09595906]
[1763338155361,2.323,94753.0,94752.0,0.09595906]
[1763338155478,2.49252,94753.0,94752.0,0.09595906]
[1763338155675,2.49252,94753.0,94752.0,0.15725906]
[1763338156043,2.0,94775.0,94768.0,0.09595906]
[1763338156641,2.06032,94769.0,94768.0,0.09595906]
[1763338156852,2.06032,94769.0,94752.0,0.09595906]
[1763338157053,2.04583,94753.0,94752.0,0.09595906]
[1763338157601,2.13795,94753.0,94752.0,0.09595906]
[1763338157748,2.04552,94753.0,94752.0,0.09595906]
[1763338157957,2.04552,94753.0,94752.0,0.09795906]
[1763338158132,2.36852,94753.0,94752.0,0.09795906]
[1763338158338,2.36852,94753.0,94752.0,0.09595906]
[1763338158536,2.36852,94753.0,94752.0,0.09695906]
[1763338158957,2.36852,94753.0,94752.0,0.09595906]
[1763338159168,2.36852,94753.0,94752.0,0.09695906]
[1763338159976,2.46096,94753.0,94752.0,0.09695906]
[1763338160155,2.36852,94753.0,94752.0,0.09695906]
[1763338160778,2.323,94753.0,94752.0,0.09695906]
[1763338160960,2.0,94765.0,94752.0,0.25245906]
[1763338161314,0.09148,94785.0,94760.0,0.0647]
[1763338161315,2.0,94781.0,94760.0,0.0647]
[1763338161513,2.00013336,94781.0,94780.0,0.09595906]
[1763338162188,2.32313336,94781.0,94780.0,0.09595906]
[1763338162526,2.41411336,94781.0,94780.0,0.09595906]
[1763338163467,2.41471289,94781.0,94780.0,0.09595906]
[1763338163669,2.41471289,94781.0,94780.0,2e-08]
[1763338164875,0.323,94778.0,94760.0,0.03774097]
[1763338165099,2.323,94778.0,94777.0,0.09595906]
[1763338165533,2.6376,94778.0,94777.0,0.09595906]
[1763338165830,2.5841,94778.0,94777.0,0.09595906]
[1763338166062,2.49934,94778.0,94777.0,0.09595906]
[1763338166264,0.49993953,94778.0,94777.0,0.09595906]
[1763338166467,0.49934,94778.0,94777.0,0.09595906]
[1763338166792,0.00013336,94781.0,94777.0,0.09595906]
[1763338167223,0.09098,94780.0,94777.0,0.09595906]
[1763338167633,0.00013336,94781.0,94777.0,0.09695906]
[1763338167865,0.00013336,94781.0,94777.0,0.09595906]
[1763338168752,0.00013336,94781.0,94777.0,0.09695906]
[1763338169384,0.00013336,94781.0,94780.0,0.0647]
[1763338169910,0.00013336,94781.0,94780.0,0.1555]
[1763338170671,0.00013336,94781.0,94780.0,0.19891874]
[1763338170882,0.00013336,94781.0,94780.0,0.20091874]
[1763338171765,0.00013336,94781.0,94780.0,0.19891874]
[1763338171969,0.00013336,94781.0,94780.0,0.24440521]
[1763338173625,0.00013336,94781.0,94780.0,0.002]
[1763338173626,6.03e-06,94781.0,94780.0,0.002]
[1763338174051,0.08766603,94781.0,94780.0,0.05874879]
[1763338174268,0.323,94786.0,94780.0,0.0667]
[1763338174448,0.32310791,94786.0,94782.0,0.05675727]
[1763338174650,0.32310791,94786.0,94785.0,0.03784169]
[1763338175041,0.00010791,94786.0,94782.0,0.05675727]
[1763338175530,0.49252,94783.0,94782.0,0.05675727]
[1763338175731,0.49252,94783.0,94782.0,0.0720289]
[1763338175916,0.49252,94783.0,94782.0,0.05675727]
[1763338176349,0.27053596,94783.0,94780.0,0.05675727]
[1763338176585,0.00010791,94786.0,94782.0,0.0647]
[1763338176801,0.00010791,94786.0,94785.0,0.0647]
[1763338176954,0.00010791,94786.0,94777.0,0.09595906]
[1763338177367,0.00010791,94786.0,94778.0,0.02623928]
[1763338177568,0.00010791,94786.0,94778.0,0.11703928]
[1763338177940,0.09606633,94818.0,94785.0,0.10811874]
[1763338178148,0.02076451,94814.0,94813.0,0.09595906]
[1763338178810,0.02076451,94814.0,94813.0,0.10933867]
[1763338179780,0.02076451,94814.0,94813.0,0.09595906]
[1763338180184,0.02076451,94814.0,94813.0,0.0408037]
[1763338181025,0.02076451,94814.0,94806.0,0.01599409]
[1763338181222,0.02076451,94814.0,94813.0,0.09595906]
[1763338181497,0.0002,94830.0,94813.0,0.27013497]
[1763338181777,0.00030789,94820.0,94819.0,0.0647]
[1763338181924,0.01702007,94820.0,94819.0,0.10784915]
[1763338182123,0.03331,94839.0,94833.0,0.09595906]
[1763338183147,0.03331,94839.0,94829.0,0.04380934]
[1763338183343,0.02211204,94834.0,94833.0,0.09595906]
[1763338184234,0.02211204,94834.0,94833.0,0.05872112]
[1763338184474,0.02311204,94834.0,94830.0,0.09595906]
[1763338185054,0.02311204,94834.0,94830.0,0.08752906]
[1763338185489,0.23449,94831.0,94830.0,0.08752906]
[1763338185643,0.14977,94831.0,94830.0,0.08752906]
[1763338185840,0.08472,94831.0,94830.0,0.08752906]
[1763338186343,0.02311204,94834.0,94830.0,0.10081097]
[1763338186504,0.02311204,94834.0,94830.0,0.08752906]
[1763338186505,0.06505,94831.0,94830.0,0.08752906]
[1763338186885,0.06666561,94831.0,94830.0,0.08752906]
[1763338187073,0.1097,94831.0,94830.0,0.08752906]
[1763338187495,0.06505,94831.0,94830.0,0.08752906]
[1763338187690,0.1097,94831.0,94830.0,0.08752906]
[1763338187891,0.11017026,94831.0,94830.0,0.08752906]
[1763338188095,0.32347026,94831.0,94830.0,0.08752906]
[1763338189253,0.32347026,94831.0,94830.0,0.15275906]
[1763338189617,0.32347026,94831.0,94830.0,0.08752906]
[1763338190649,0.32524153,94831.0,94830.0,0.08752906]
[1763338190851,0.42240153,94831.0,94830.0,0.08752906]
[1763338191395,0.06729153,94831.0,94830.0,0.09595906]
[1763338191547,0.06552026,94831.0,94830.0,0.09595906]
[1763338191747,0.06729153,94831.0,94830.0,0.09595906]
[1763338191965,0.00224153,94831.0,94830.0,0.09595906]
[1763338192328,0.09539153,94831.0,94813.0,0.09595635]
[1763338192529,0.09315,94831.0,94830.0,0.09595906]
[1763338192728,0.09315,94831.0,94798.0,0.09595906]
[1763338192968,0.04811,94799.0,94798.0,0.09640375]
[1763338193176,0.04903,94799.0,94798.0,0.09640375]
[1763338193371,0.14061,94799.0,94798.0,0.09640375]
[1763338193578,0.14074158,94799.0,94798.0,0.09640375]
[1763338194740,0.04916158,94799.0,94798.0,0.09640375]
[1763338195003,0.46330158,94799.0,94798.0,0.09640375]
[1763338195353,0.54802158,94799.0,94798.0,0.09640375]
[1763338195552,0.49257158,94799.0,94798.0,0.09640375]
[1763338195754,0.58514,94799.0,94798.0,0.09640375]
[1763338196383,0.4157,94799.0,94798.0,0.09640375]
[1763338197819,0.4157,94799.0,94798.0,0.09740375]
[1763338199558,0.4157,94799.0,94798.0,0.09640375]
[1763338200329,0.323,94799.0,94798.0,0.09640375]
[1763338200528,0.41506,94799.0,94798.0,0.09640375]
[1763338201179,0.323,94799.0,94798.0,0.09640375]
[1763338201357,0.09114,94810.0,94798.0,0.09640375]
[1763338201358,0.04298,94805.0,94798.0,0.09640375]
[1763338201762,0.00109,94799.0,94798.0,0.00044469]
[1763338201920,0.00129287,94799.0,94798.0,0.00044469]
[1763338202119,0.09734287,94799.0,94798.0,0.00044469]
[1763338203121,0.09580798,94805.0,94798.0,0.00044469]
[1763338203343,0.09689798,94805.0,94804.0,2e-08]
[1763338203760,0.51594798,94805.0,94804.0,2e-08]
[1763338204224,0.36707,94805.0,94804.0,2e-08]
[1763338204448,0.323,94805.0,94804.0,2e-08]
[1763338204658,0.41854,94805.0,94804.0,0.001]
[1763338204833,0.323,94804.0,94793.0,0.09595906]